[Event "44th Chess Olympiad Open 2022"]
[Site "Chennai"]
[Date "2022.08.03"]
[Round "6.41"]
[White "Villanueva, Marcio"]
[Black "Mehmeti, Dritan"]
[Result "0-1"]
[WhiteElo "2009"]
[BlackElo "2371"]
[Annotator "RC"]
[PlyCount "80"]
[EventDate "2022.??.??"]
[TimeControl "60"]

1. d4 {[%emt 0:00:02]} Nf6 {[%emt 0:02:09]} 2. Nf3 {[%emt 0:00:22]} c5 {
[%emt 0:00:25]} 3. d5 {[%emt 0:01:23]} g6 {[%emt 0:00:35]} 4. Nc3 {[%emt 0:00:
00]} Bg7 {[%emt 0:00:23]} 5. e4 {[%emt 0:00:04]} d6 {[%emt 0:00:49]} 6. Bb5+ {
[%emt 0:00:08]} Bd7 {[%emt 0:00:47]} 7. a4 {[%emt 0:00:04]} O-O {[%emt 0:00:16]
} 8. h3 {[%emt 0:00:10]} Na6 {[%emt 0:00:48]} 9. O-O {[%emt 0:00:13]} Nc7 {
[%emt 0:00:23]} 10. Be2 {[%emt 0:00:06]} a6 {[%emt 0:02:19]} 11. Be3 {[%emt 0:
00:00]} b5 {[%emt 0:15:30]} 12. e5 {[%emt 0:00:19]} Nfe8 {[%emt 0:00:55]} 13.
Ne4 {[%emt 0:01:09]} Bf5 {[%emt 0:02:58]} 14. Ng3 {[%emt 0:11:13]} dxe5 {
[%emt 0:05:42]} 15. Nxf5 {[%emt 0:00:59]} gxf5 {[%emt 0:00:07]} 16. Bxc5 {
[%emt 0:00:05]} Nd6 {[%emt 0:01:04]} 17. Re1 {[%emt 0:02:26]} Qd7 {[%emt 0:00:
00]} 18. axb5 {[%emt 0:06:42]} axb5 {[%emt 0:00:27]} 19. Ra3 {[%emt 0:00:41]}
Ne4 {[%emt 0:04:13]} 20. Bb4 {[%emt 0:07:14]} Rxa3 {[%emt 0:05:33]} 21. Bxa3 {
[%emt 0:02:08]} Rd8 {[%emt 0:09:33]} 22. c4 {[%emt 0:04:40]} bxc4 {[%emt 0:00:
00]} 23. Bxc4 {[%emt 0:01:20]} e6 {[%emt 0:01:08]} 24. d6 {[%emt 0:19:13]} Ne8
{[%emt 0:01:19]} 25. Rxe4 {[%emt 0:00:53]} fxe4 {[%emt 0:00:43]} 26. Ng5 {
[%emt 0:03:28]} Nxd6 {[%emt 0:03:43]} 27. Qh5 {[%emt 0:09:55]} h6 {[%emt 0:00:
00]} 28. Bxd6 {[%emt 0:00:30]} hxg5 {[%emt 0:00:16]} 29. Bc5 {[%emt 0:00:31]}
Qd1+ {[%emt 0:01:12]} 30. Qxd1 {[%emt 0:00:07]} Rxd1+ {[%emt 0:00:06]} 31. Kh2
{[%emt 0:00:22]} Bf8 {[%emt 0:01:49]} 32. Be3 {[%emt 0:00:27]} Be7 {[%emt 0:00:
00]} 33. g4 {[%emt 0:05:33]} Kg7 {[%emt 0:00:47]} 34. b4 {[%emt 0:01:04]} Bxb4
{[%emt 0:03:32]} 35. Bxg5 {[%emt 0:00:07]} Rd4 {[%emt 0:01:53]} 36. Bb3 {
[%emt 0:01:04]} Bd2 {[%emt 0:00:11]} 37. Be7 {[%emt 0:01:03]} e3 {[%emt 0:00:
00]} 38. fxe3 {[%emt 0:01:45]} Bxe3 {[%emt 0:00:06]} 39. Kg2 {[%emt 0:02:56]}
Bf4 {[%emt 0:03:26]} 40. h4 {[%emt 0:01:45]} Rd3 {[%emt 0:00:54]} 0-1

[Event "44th Chess Olympiad Open 2022"]
[Site "Chennai"]
[Date "2022.08.03"]
[Round "6.42"]
[White "Shishkov, Andrei"]
[Black "Kassis, Antoine"]
[Result "1-0"]
[WhiteElo "2366"]
[BlackElo "2202"]
[Annotator "TA"]
[PlyCount "113"]
[EventDate "2022.??.??"]
[TimeControl "60"]

{[%evp 25,113,32,31,34,39,32,41,29,61,60,112,113,114,110,124,78,110,79,79,79,
116,86,87,62,119,112,123,97,195,188,190,133,170,163,339,341,360,362,335,354,
347,359,319,363,365,361,369,339,404,377,399,393,420,397,404,421,404,200,200,
200,312,314,354,320,298,327,333,315,266,557,999,1027,5052,741,5052,5311,3488,
2721,29970,29970,29980,29981,29981,29982,29981,29983,29982,29983,29983,29983]} 
1. d4 {[%emt 0:00:01]} Nf6 {[%emt 0:00:08]} 2. c4 {[%emt 0:00:03]} g6 {[%emt 0:
00:00]} 3. Nc3 {[%emt 0:00:04]} Bg7 {[%emt 0:00:07]} 4. e4 {[%emt 0:00:04]} d6
{[%emt 0:00:06]} 5. f3 {[%emt 0:00:04]} O-O {[%emt 0:00:06]} 6. Be3 {[%emt 0:
00:00]} c5 {[%emt 0:00:48]} 7. Nge2 {[%emt 0:00:10]} cxd4 {[%emt 0:00:56]} 8.
Nxd4 {[%emt 0:00:12]} Nc6 {[%emt 0:00:06]} 9. Be2 {[%emt 0:00:27]} Nxd4 {
[%emt 0:04:07]} 10. Bxd4 {[%emt 0:00:29]} Be6 {[%emt 0:01:45]} 11. O-O {
[%emt 0:02:40]} Nd7 {[%emt 0:05:41]} 12. f4 {[%emt 0:05:48]} Bxd4+ {[%emt 0:00:
00]} 13. Qxd4 {[%emt 0:00:04]} Qb6 {[%emt 0:00:12]} 14. Qxb6 {[%emt 0:01:39]
B38: Sicilian: Maroczy Bind with 5...Bg7 and 7...0-0.} Nxb6 {[%emt 0:00:11]}
15. b3 {[%emt 0:00:33]} f6 {[%emt 0:18:03]} 16. Bf3 {[%emt 0:02:56][%cal Ye4e5]
[#] White is slightly better.} Bd7 $146 {[%emt 0:05:53]} ({Predecessor:} 16...
Rab8 17. Rfe1 Nd7 18. Nd5 Kf7 19. Rad1 {½-½ (19) Almarza Mato,C (2016)
-Cumming,D (2230) ICCF email 2009}) 17. e5 {[%emt 0:11:41]} Bc6 {[%emt 0:08:19]
} (17... fxe5 $14 18. fxe5 (18. Bxb7 Rab8 $11) 18... Bc6) 18. exd6 $16 {
[%emt 0:01:16]} exd6 {[%emt 0:00:32]} 19. Rad1 {[%emt 0:01:51]} Rad8 {[%emt 0:
00:00]} 20. Rd3 {[%emt 0:05:54]} (20. f5 $142) 20... Rd7 {[%emt 0:17:25]} 21.
Rfd1 {[%emt 0:01:23]} Bxf3 {[%emt 0:00:33]} 22. Rxf3 {[%emt 0:00:08]} Rfd8 {
[%emt 0:00:21]} 23. Rfd3 {[%emt 0:01:02]} Kf7 {[%emt 0:03:41]} 24. a4 {[%emt 0:
00:00]} a5 {[%emt 0:04:16]} (24... d5 $14) 25. Nd5 {[%emt 0:03:19]} Nc8 {
[%emt 0:01:50]} 26. f5 {[%emt 0:04:05] White is more active.} gxf5 {[%emt 0:00:
00]} (26... Ne7 $16) 27. Rh3 $18 {[%emt 0:02:42]} Kg7 {[%emt 0:00:26]} 28. Rdd3
{[%emt 0:02:19]} (28. Re1 $18) 28... Rf7 {[%emt 0:00:54]} 29. Rde3 $36 {
[%emt 0:01:27] White has strong compensation. Keeping Black busy.} Rdd7 $2 {
[%emt 0:01:20]} (29... Na7 {was called for.} 30. Rhg3+ Kh8) 30. Re8 {[%emt 0:
01:17]} Ne7 {[%emt 0:00:17]} 31. Nf4 {[%emt 0:00:27]} h6 {[%emt 0:00:00]} 32.
Ne6+ {[%emt 0:00:18]} Kh7 {[%emt 0:00:28]} 33. Nf8+ {[%emt 0:01:47]} Rxf8 {
[%emt 0:00:05]} 34. Rxf8 {[%emt 0:00:03] Endgame KRR-KRN} Kg7 {[%emt 0:00:14]}
35. Ra8 {[%emt 0:00:24]} Nc6 {[%emt 0:00:11]} 36. Rg3+ {[%emt 0:01:31]} Kf7 {
[%emt 0:01:08]} 37. Rh8 {[%emt 0:00:17]} Ke6 {[%emt 0:00:00]} 38. Rxh6 {
[%emt 0:00:39]} Ne5 {[%emt 0:00:08]} 39. Rg8 {[%emt 0:03:58]} d5 {[%emt 0:00:
13]} 40. Rf8 {[%emt 0:00:47]} Ng4 {[%emt 0:00:13]} 41. Rh3 {[%emt 0:35:45]} (
41. Re8+ $142 Kf7 42. Rhh8) 41... dxc4 {[%emt 0:32:31][%cal Rd7d1] [#]} 42.
Re8+ {[%emt 0:01:07]} Kd5 {[%emt 0:00:00]} (42... Kf7 $142 43. Re1 Rd4 44. Rh7+
Kg6 45. Rxb7 cxb3 46. Rxb3 Rxa4) 43. Re1 {[%emt 0:00:00] Hoping for Rd1+.} Kc5
{[%emt 0:00:00]} 44. Rc1 {[%emt 0:00:00]} Ne5 {[%emt 0:00:00]} 45. bxc4 {
[%emt 0:00:00]} Kb4 {[%emt 0:00:00]} 46. Rb1+ {[%emt 0:00:00]} Kxa4 {[%emt 0:
00:00]} 47. Rhb3 {[%emt 0:00:00]} Nxc4 {[%emt 0:00:00][%cal Yd7d1]} 48. Rxb7 {
[%emt 0:00:00]} Rd4 {[%emt 0:00:00]} 49. Ra1+ {[%emt 0:00:00]} Na3 {[%emt 0:00:
00]} 50. Rb2 {[%emt 0:00:00]} Rb4 {[%emt 0:00:00]} 51. Rba2 {[%emt 0:00:00]}
Rb3 {[%emt 0:00:00]} 52. h4 {[%emt 0:00:00][%cal Yh2h4,Yh4h5,Yh5h6,Yh6h7]
White mates.} Kb4 {[%emt 0:00:00] [#]} 53. Rxa3 $1 {[%emt 0:00:00]} Rxa3 {
[%emt 0:00:00]} 54. Rxa3 {[%emt 0:00:00]} Kxa3 {[%emt 0:00:00]} 55. h5 {
[%emt 0:00:00]} Kb2 {[%emt 0:00:00]} 56. h6 {[%emt 0:00:00]} a4 {[%emt 0:00:00]
} 57. h7 {[%emt 0:00:00] Weighted Error Value: White=0.12 (very precise) /
Black=0.45} 1-0

[Event "44th Chess Olympiad Open 2022"]
[Site "Chennai"]
[Date "2022.08.03"]
[Round "6.42"]
[White "Kiik, Kalle"]
[Black "Kaloust, Giorgio"]
[Result "1-0"]
[WhiteElo "2365"]
[BlackElo "1942"]
[Annotator "TA"]
[PlyCount "95"]
[EventDate "2022.??.??"]
[TimeControl "60"]

{[%evp 11,95,0,5,10,28,-31,-16,-19,-22,-24,7,2,10,8,12,10,16,6,14,0,1,0,20,11,
19,-16,-20,-16,0,0,0,-14,22,22,54,32,133,123,236,214,225,178,217,168,236,237,
252,218,241,234,214,144,136,125,221,206,210,211,182,205,184,174,266,115,155,91,
145,94,105,87,381,358,351,359,344,320,466,481,475,472,458,459,666,664,29984,
29985]} 1. e4 {[%emt 0:00:16]} c6 {[%emt 0:00:08]} 2. d4 {[%emt 0:02:26]} d5 {
[%emt 0:00:09]} 3. f3 {[%emt 0:00:21]} dxe4 {[%emt 0:00:17]} 4. fxe4 {[%emt 0:
00:00]} e5 {[%emt 0:00:03]} 5. Nf3 {[%emt 0:00:19]} Bg4 {[%emt 0:00:44]} 6. Bc4
{[%emt 0:07:22]} Nd7 {[%emt 0:03:09]} 7. c3 {[%emt 0:03:52] Threatens to win
with Qb3. B12: Caro-Kann: Advance Variation.} Bd6 {[%emt 0:03:22] is now more
promising than 7...Bh5.} 8. h3 {[%emt 0:06:37]} (8. Qb3 $11 Qe7 9. Qxb7) 8...
Bh5 {[%emt 0:02:23]} 9. O-O {[%emt 0:03:27] The position is equal.} Ngf6 {
[%emt 0:01:39]} 10. Bg5 {[%emt 0:06:09]} Qc7 {[%emt 0:06:22]} (10... h6 {
is interesting.} 11. Bxf6 Nxf6 12. dxe5 Bc5+) 11. Nbd2 {[%emt 0:02:19] [#]} b5
$146 {[%emt 0:02:51]} ({Predecessor:} 11... h6 12. Be3 b5 13. Bb3 c5 14. dxe5
Nxe5 15. Bc2 O-O 16. Qe1 Nxf3+ 17. Nxf3 Rae8 {0-1 (33) Soto Vega,J (2363)
-Licznerski,L (2369) Chess.com INT 2020}) 12. Be2 {[%emt 0:03:38]} O-O {
[%emt 0:05:54]} 13. Nh4 {[%emt 0:03:50]} Bg6 {[%emt 0:04:03]} 14. Nxg6 {
[%emt 0:01:41]} hxg6 {[%emt 0:01:16]} 15. Bf3 {[%emt 0:06:23]} Rfe8 {[%emt 0:
00:00]} 16. Kh1 {[%emt 0:06:10]} Be7 {[%emt 0:14:00][%cal Yf6h5]} 17. Be3 {
[%emt 0:01:24]} a6 {[%emt 0:05:30]} 18. b3 {[%emt 0:03:09]} Rad8 {[%emt 0:00:
00]} 19. Rc1 {[%emt 0:02:48]} Bd6 {[%emt 0:01:48]} 20. Qe2 {[%emt 0:01:53]} Nf8
{[%emt 0:04:54]} 21. Qf2 {[%emt 0:03:27]} N8d7 {[%emt 0:04:21]} 22. g4 {
[%emt 0:04:07][%cal Yg2g4,Yg4g5]} Rf8 {[%emt 0:03:55]} 23. Qg2 {[%emt 0:04:18]}
c5 {[%emt 0:03:49]} (23... exd4 $14 24. cxd4 Bf4) 24. d5 $16 {[%emt 0:00:39]}
Be7 {[%emt 0:00:39]} (24... c4 $16 {keeps fighting.}) 25. g5 $18 {[%emt 0:03:
49]} Ne8 {[%emt 0:00:06]} 26. Bg4 {[%emt 0:00:21]} Nd6 {[%emt 0:00:19]} 27. Rf2
{[%emt 0:02:03]} f5 {[%emt 0:04:48]} (27... c4 $142 28. b4 Kh8) 28. gxf6 $1 {
[%emt 0:00:17]} Rxf6 {[%emt 0:01:08]} 29. Be6+ {[%emt 0:00:00]} Kh7 {[%emt 0:
02:06]} 30. Rg1 {[%emt 0:03:29] Threatening mate with Rxf6.} Nf8 {[%emt 0:00:
23]} 31. Bg4 {[%emt 0:01:42]} c4 {[%emt 0:00:55]} 32. b4 {[%emt 0:00:20]} Nf7 {
[%emt 0:01:31]} (32... a5 $16) 33. Nf3 {[%emt 0:03:35]} a5 {[%emt 0:00:49]} 34.
a3 {[%emt 0:00:07]} axb4 {[%emt 0:00:05]} 35. axb4 {[%emt 0:00:05]} Ra8 {
[%emt 0:01:28]} 36. Qg3 {[%emt 0:03:25]} Ra3 {[%emt 0:00:00] [#]} (36... Kg8
$142 37. Nd4 Rxf2 38. Bxf2 Qb7) 37. Bd2 {[%emt 0:00:44]} (37. Nd4 $1 $18 {
[%cal Rd4b5]} Nd6 38. Rxf6 Bxf6 39. Ne6) 37... Qa7 {[%emt 0:00:00] [#]} 38.
Rfg2 {[%emt 0:01:25]} (38. Re2 $142 $1) 38... Ra1 {[%emt 0:00:51]} ({Better is
} 38... Kg8) 39. Rxa1 {[%emt 0:05:58]} ({Resist} 39. Nxe5 $6 Rxg1+ 40. Rxg1
Nxe5 41. Qxe5 Bd6 $16) (39. Re2 $142) 39... Qxa1+ $16 {[%emt 0:00:06]} 40. Qe1
{[%emt 0:01:00]} Qb2 {[%emt 0:00:56] A mistake that costs the game.} (40... Ra6
$16 {was called for.}) 41. Bg5 $18 {[%emt 0:31:11]} Qa3 {[%emt 0:06:48]} 42.
Bxf6 {[%emt 0:00:00]} Bxf6 {[%emt 0:02:26]} 43. Be6 {[%emt 0:00:00]} Nh6 {
[%emt 0:02:48]} (43... Nd8 $142 44. Bg4 Nf7) 44. Ng5+ {[%emt 0:00:00]} Kh8 {
[%emt 0:01:44]} 45. Nf7+ {[%emt 0:00:00]} Kh7 {[%emt 0:00:00]} 46. Nxh6 {
[%emt 0:00:00]} gxh6 {[%emt 0:01:33]} (46... Kxh6 $142 47. Qe3+ Kh7) 47. Rf2 {
[%emt 0:00:00]} Kg7 {[%emt 0:00:28] [#]} 48. Rxf6 $1 {[%emt 0:00:00] Weighted
Error Value: White=0.18 (very precise) /Black=0.59} 1-0

[Event "44th Chess Olympiad Open 2022"]
[Site "Chennai"]
[Date "2022.08.03"]
[Round "6.42"]
[White "El Jawich, Amro"]
[Black "Chukavin, Kirill"]
[Result "1-0"]
[WhiteElo "2314"]
[BlackElo "2418"]
[Annotator "TA"]
[PlyCount "139"]
[EventDate "2022.??.??"]
[TimeControl "60"]

{[%evp 9,139,0,0,0,0,0,84,81,91,81,125,83,71,-12,-18,-27,41,-10,-43,-56,-46,
-43,-39,-68,0,0,0,0,0,0,164,-5,0,0,86,0,66,56,134,46,214,207,182,0,0,0,0,0,791,
609,602,602,583,571,539,539,539,539,539,539,539,122,133,118,144,145,397,397,
388,393,389,353,381,381,420,416,405,393,533,530,523,500,584,556,567,549,534,
530,589,559,574,568,552,540,520,513,703,695,656,645,603,404,29960,29958,29952,
943,910,892,892,885,766,653,586,460,5758,4777,29965,29967,29967,29969,29969,
29970,29970,29970,29970,29970,29972,29973,29971,29970,29964,5082]} 1. e4 {
[%emt 0:00:03]} c5 {[%emt 0:00:16]} 2. Nf3 {[%emt 0:00:23]} e6 {[%emt 0:00:28]}
3. b3 {[%emt 0:00:30]} b6 {[%emt 0:00:51]} 4. d4 {[%emt 0:00:21]} cxd4 {
[%emt 0:00:36]} 5. Nxd4 {[%emt 0:00:08]} Bb7 {[%emt 0:00:29]} 6. Nd2 {[%emt 0:
00:00] B40: Sicilian: 2...e6, Unusual lines.} Bc5 {[%emt 0:33:47]} 7. Bb2 {
[%emt 0:00:57][%cal Yd4f5]} Ne7 {[%emt 0:12:33] Inhibits Nf5.} (7... Nh6 $11 {
keeps the balance.}) 8. Qg4 $1 $16 {[%emt 0:07:35] White is better.} Ng6 {
[%emt 0:01:38]} 9. O-O-O $1 {[%emt 0:04:10] [#]} h5 $146 {[%emt 0:01:45]} ({
Predecessor:} 9... O-O 10. h4 f6 11. f4 Bxd4 12. Bxd4 e5 13. fxe5 Nxe5 14. Qg3
Qe7 15. Nc4 d6 {1-0 (28) Eugene,F (2393)-Mekhane,A (2285) Tremblay en France
2022}) 10. Qe2 {[%emt 0:04:50][%cal Yd4f5]} Kf8 {[%emt 0:07:31]} 11. f4 {
[%emt 0:14:10]} ({White should try} 11. Kb1 $16) 11... Nxf4 $11 {[%emt 0:05:26]
} 12. Qf3 {[%emt 0:02:43]} Qg5 {[%emt 0:04:06]} (12... Ng6 $1 $11) 13. g3 {
[%emt 0:05:50]} (13. Bc4 $1 $14) 13... Ng6 {[%emt 0:00:42]} 14. h4 {[%emt 0:00:
00]} Qf6 {[%emt 0:03:53]} 15. Qd3 {[%emt 0:19:09]} Ne5 {[%emt 0:00:52]} 16. Qe2
{[%emt 0:00:57]} Bxd4 {[%emt 0:02:01]} (16... Ng4 $15 17. Nb5 Qd8) 17. Bxd4 {
[%emt 0:00:12]} Nbc6 {[%emt 0:00:20] Pair of Knights!} 18. Bb2 {[%emt 0:00:36]}
Qe7 {[%emt 0:04:35]} 19. Nf3 {[%emt 0:05:38]} Qc5 {[%emt 0:03:56]} (19... f6
$11) 20. Kb1 $2 {[%emt 0:03:06]} (20. b4 $1 $18 {[%cal Rb4c5]} Qxb4 21. Nxe5
Nxe5 22. Bxe5 Qxe4 23. Bd6+ Kg8 24. Qxe4 Bxe4 25. Rh2) 20... Rc8 {[%emt 0:00:
00]} 21. Bh3 {[%emt 0:05:13]} Ke8 {[%emt 0:11:13] [#]} (21... Kg8 $11 {remains
equal.}) 22. Rhf1 {[%emt 0:02:50]} (22. Qd2 $1 $16 Kf8 (22... d6 23. Ng5) 23.
Rhf1 (23. Qg5 f6 $11)) 22... d6 {[%emt 0:01:18]} (22... f6 $11) 23. Ng5 {
[%emt 0:02:19][%cal Yh3e6] And now Bxe6! would win.} Nd8 {[%emt 0:00:10]} ({
Better is} 23... Rh6 $14) 24. Bd4 {[%emt 0:01:48]} (24. a3 $16) 24... Qc7 $2 {
[%emt 0:00:28]} ({Black should play} 24... Qa5 $14) 25. Bxe5 $18 {[%emt 0:00:
00] Remove Defender} dxe5 {[%emt 0:00:04] [#]} 26. Nxf7 $2 {[%emt 0:00:00]}
Nxf7 $11 {[%emt 0:00:12]} 27. Bxe6 {[%emt 0:00:07]} Nd6 {[%emt 0:01:06][%cal
Yd6e4]} 28. Bxc8 {[%emt 0:00:23] Dancing on a razor blade.} Nxc8 {[%emt 0:01:
21]} (28... Bxc8 $11 29. Rd5 Nf7) 29. Qb5+ {[%emt 0:00:00]} Bc6 {[%emt 0:00:35]
} 30. Qc4 {[%emt 0:00:08] White threatens Qe6+ and mate.} Rf8 {[%emt 0:01:35]}
31. Rxf8+ {[%emt 0:00:58]} (31. Qe6+ Ne7 $16) 31... Kxf8 {[%emt 0:00:04]} 32.
Rf1+ {[%emt 0:01:07]} Ke8 {[%emt 0:00:05]} 33. Qg8+ {[%emt 0:00:29]} ({Weaker
is} 33. Qe6+ Ne7 $16) 33... Kd7 {[%emt 0:00:05]} 34. Rd1+ {[%emt 0:01:04]} Nd6
{[%emt 0:00:11]} 35. Qxg7+ $2 {[%emt 0:00:15]} (35. Qf7+ $18 {is the precise
move to win.} Kc8 36. Qe6+ Bd7 37. Qxd6) 35... Kc8 $16 {[%emt 0:00:21]} 36.
Qf8+ {[%emt 0:01:34]} ({Much worse is} 36. Qxe5 $6 Nxe4 37. Qxc7+ Kxc7 $11)
36... Ne8 {[%emt 0:00:50]} 37. Rf1 {[%emt 0:01:31] White is more active.} Qg7
$2 {[%emt 0:01:43]} (37... Kd8 $16 38. Qf5 Nd6) 38. Qxg7 $18 {[%emt 0:01:18]}
Nxg7 {[%emt 0:00:05]} 39. Rf8+ {[%emt 0:00:04]} Ne8 {[%emt 0:00:27]} 40. Rh8 {
[%emt 0:00:56]} Kd7 {[%emt 0:00:32]} 41. Rxh5 {[%emt 0:30:33]} Ke6 {[%emt 0:09:
26]} 42. Rh6+ {[%emt 0:05:55]} Kd7 {[%emt 0:00:00]} 43. Rh7+ {[%emt 0:00:00]}
Ke6 {[%emt 0:00:40]} 44. Rxa7 {[%emt 0:00:00]} Nf6 {[%emt 0:00:34]} 45. Ra6 {
[%emt 0:00:00]} Nd7 {[%emt 0:01:12]} 46. h5 {[%emt 0:00:00][%cal Yh4h5,Yh5h6]}
Bxe4 {[%emt 0:01:42]} 47. h6 {[%emt 0:00:00]} Kf6 {[%emt 0:01:35]} 48. Ra7 {
[%emt 0:00:00]} Bf5 {[%emt 0:00:00]} 49. a4 {[%emt 0:00:00]} Kg6 {[%emt 0:03:
44]} 50. b4 {[%emt 0:00:00]} Kxh6 {[%emt 0:01:05]} 51. a5 {[%emt 0:00:00]} bxa5
{[%emt 0:00:15]} 52. bxa5 {[%emt 0:00:00]} e4 {[%emt 0:00:17]} 53. Kc1 {
[%emt 0:00:00] Black must now prevent Rb7.} e3 {[%emt 0:00:30]} 54. a6 {
[%emt 0:00:00]} Nc5 {[%emt 0:01:11] Against Rb7} 55. Rc7 {[%emt 0:00:00]} Ne4 {
[%emt 0:03:01]} (55... Nxa6 $18 56. Rc6+ Kh5 57. Rxa6 e2) 56. Kd1 {[%emt 0:00:
00]} Nxg3 {[%emt 0:02:04]} 57. a7 {[%emt 0:00:36]} (57. Rc6+ $142 Kg5 58. a7
Bg4+ 59. Ke1 Bf3 60. a8=Q Bxc6 61. Qxc6 Nh5 62. Qd5+ Kg6 63. Qe6+ Kg5 64. c4)
57... Be4 {[%emt 0:00:12]} 58. Re7 {[%emt 0:00:58][%cal Ye7e4] Threatening
mate with Rxe4!} Bf3+ {[%emt 0:00:26]} 59. Ke1 {[%emt 0:00:51]} Nf5 {[%emt 0:
00:07]} 60. Re8 {[%emt 0:01:06]} Nd4 {[%emt 0:02:40]} 61. c3 {[%emt 0:00:32]}
Nc2+ {[%emt 0:01:44]} (61... Nf5 $142 62. a8=Q Bxa8 63. Rxa8 Kg6) 62. Kf1 {
[%emt 0:00:11]} Kg5 {[%emt 0:00:18]} 63. a8=Q {[%emt 0:00:25] White mates.} e2+
{[%emt 0:00:54]} 64. Rxe2 {[%emt 0:00:00]} Bxa8 {[%emt 0:00:20]} 65. Rxc2 {
[%emt 0:00:05] KR-KB} Kf5 {[%emt 0:00:33]} 66. Re2 {[%emt 0:00:55]} Be4 {
[%emt 0:01:03]} 67. Kf2 {[%emt 0:00:17]} Ke5 {[%emt 0:00:17]} 68. Ke3 {[%emt 0:
00:12]} Bd5 {[%emt 0:00:50]} 69. Kd3+ {[%emt 0:01:00]} Kd6 {[%emt 0:00:08]} 70.
Kd4 {[%emt 0:00:08] Weighted Error Value: White=0.35/Black=0.55} 1-0

[Event "44th Chess Olympiad Open 2022"]
[Site "Chennai"]
[Date "2022.08.03"]
[Round "6.42"]
[White "Khoder, Akram"]
[Black "Kanep, Meelis"]
[Result "0-1"]
[WhiteElo "2038"]
[BlackElo "2417"]
[Annotator "TA"]
[PlyCount "62"]
[EventDate "2022.??.??"]
[TimeControl "60"]

{[%evp 19,62,12,11,0,0,0,0,0,0,0,12,0,6,-11,33,37,52,44,38,32,22,28,20,0,0,0,
-2,-406,-414,-1587,-1537,-1235,-506,-482,-462,-478,-467,-476,-276,-291,-291,
-1659,-1617,-29994,-29995]} 1. d4 {[%emt 0:00:03]} Nf6 {[%emt 0:00:07]} 2. c4 {
[%emt 0:00:04]} e6 {[%emt 0:00:06]} 3. g3 {[%emt 0:00:02]} c5 {[%emt 0:00:17]}
4. d5 {[%emt 0:00:11]} exd5 {[%emt 0:00:11]} 5. cxd5 {[%emt 0:00:04]} d6 {
[%emt 0:00:08]} 6. Nc3 {[%emt 0:00:03]} g6 {[%emt 0:00:12]} 7. Bg2 {[%emt 0:00:
00]} Bg7 {[%emt 0:00:10]} 8. Nf3 {[%emt 0:00:04][%cal Yg1f3,Yf3d2,Yd2c4]} O-O {
[%emt 0:00:11]} 9. O-O {[%emt 0:00:03]} Re8 {[%emt 0:00:10]} 10. Bf4 {[%emt 0:
00:03]} Na6 {[%emt 0:00:14] 10...Bf5 is becoming the main line.} 11. Nd2 {
[%emt 0:08:59] A62: Modern Benoni: Fianchetto Variation without early ... Nbd7.
} Nh5 $1 {[%emt 0:03:54]} 12. Be3 {[%emt 0:00:57]} Nc7 {[%emt 0:12:13]} 13. a4
{[%emt 0:01:16] Against b5. The position is equal.} b6 {[%emt 0:01:37]} 14. Qb3
{[%emt 0:18:27]} Ba6 {[%emt 0:04:21]} 15. Nc4 {[%emt 0:00:34]} Qd7 {[%emt 0:01:
43]} 16. Na3 {[%emt 0:00:14] [#]} Bd4 $146 {[%emt 0:25:38]} ({Predecessor:} 
16... Rxe3 17. fxe3 Re8 18. Ncb5 Bxb5 19. Nxb5 Na6 20. e4 Nb4 21. Rf2 a6 22.
Na3 Nf6 {0-1 (44) Navalgund,N (2267)-Narayanan,S (2443) Pune 2014}) 17. Bxd4 $1
{[%emt 0:01:22]} cxd4 {[%emt 0:00:10]} 18. Ncb5 {[%emt 0:00:57]} Bxb5 {[%emt 0:
00:28]} 19. axb5 {[%emt 0:02:13]} Rxe2 {[%emt 0:00:42]} 20. Rad1 {[%emt 0:00:
24]} Nf6 {[%emt 0:10:07]} 21. Rxd4 {[%emt 0:06:09]} Rae8 $36 {[%emt 0:09:42]
Black has the initiative.} 22. h3 {[%emt 0:02:19]} Ne4 {[%emt 0:02:01] Hoping
for ...Nd2.} 23. Qd1 {[%emt 0:20:42] Against Nd2. This costs White the game.} (
23. Qd3 $1 $11 {and White is okay.} Nc5 24. Qc3) 23... Nxf2 $1 $19 {[%emt 0:01:
23]} 24. Qc1 {[%emt 0:02:14]} (24. Rxf2 $142 Re1+ 25. Bf1 Rxd1 26. Rxd1) 24...
Nxh3+ {[%emt 0:05:26] Pair of Knights!} 25. Kh2 {[%emt 0:01:03] [#]} Nf2 {
[%emt 0:00:33]} (25... Rxg2+ $142 $1 26. Kxg2 Re2+ 27. Kf3 Qe7) 26. Qf4 {
[%emt 0:00:44] [#]} Ne4 {[%emt 0:00:14]} 27. Kg1 {[%emt 0:03:58][%cal Rd4e4]}
f5 {[%emt 0:03:24] And now ... Qg7 would win.} 28. Bf3 {[%emt 0:00:24]} g5 {
[%emt 0:01:04]} (28... Qg7 $142 29. Rxe4 R8xe4 30. Bxe4 Qd4+ 31. Rf2 Rxf2 32.
Qxf2 Qxe4) 29. Qc1 {[%emt 0:00:00] [#]} Qg7 $1 {[%emt 0:01:14]} ({Less strong
is} 29... Nxb5 30. Rxe4 fxe4 31. Bxe2 $16) ({Weaker is} 29... Nxg3 30. Qxg5+
Qg7 31. Qxg7+ Kxg7 32. Rc4 $17) 30. Rc4 {[%emt 0:00:23]} (30. Rxe4 R2xe4 31.
Bxe4 fxe4 32. Nc4 Nxb5 33. Qe3) 30... Nxg3 {[%emt 0:00:26][%cal Yf5f4] White
must now prevent ...f4!} 31. Rd1 {[%emt 0:00:39] [#]} Qh6 $1 {[%emt 0:01:00]
Weighted Error Value: White=1.12/ Black=0.38} 0-1